bitfinex-derivatives/quotes_ETHF0:USTF0_20241004
["timestamp","ask_amount","ask_price","bid_price","bid_amount"]
[1728054663008,1.04488,2393.0,2392.5,3.62582]
[1728054663208,4.25261,2393.2,2392.5,3.2078]
[1728054663209,0.41801,2392.6,2392.5,3.2078]
[1728054663516,1.04498,2392.8,2392.6,0.41801]
[1728054663517,0.41799,2392.8,2392.6,0.41801]
[1728054663701,0.41795,2393.0,2392.8,0.41797]
[1728054663906,0.41794,2393.1,2392.8,0.41797]
[1728054664209,3.2078,2393.2,2393.0,0.41793]
[1728054664516,3.2078,2393.2,2392.9,0.41795]
[1728054664517,0.41793,2393.1,2392.9,0.41795]
[1728054665007,1.04471,2393.4,2392.7,0.41798]
[1728054665008,0.41797,2392.9,2392.7,0.41798]
[1728054665212,0.418,2392.7,2392.5,3.2078]
[1728054665401,3.2078,2392.8,2392.0,0.3964]
[1728054665608,3.2078,2392.8,2392.2,0.41807]
[1728054665609,0.41805,2392.4,2392.2,0.41807]
[1728054665804,3.2078,2392.5,2392.0,0.3964]
[1728054666009,0.4181,2392.1,2391.9,0.41812]
[1728054666214,0.41809,2392.2,2391.9,0.41814]
[1728054666416,0.41806,2392.4,2392.2,0.41807]
[1728054666707,1.04499,2392.8,2392.4,0.41804]
[1728054666708,0.418,2392.7,2392.4,0.41804]
[1728054666913,0.418,2392.7,2391.8,4.65647]
[1728054666914,1.045,2392.7,2392.2,0.41807]
[1728054667108,0.41811,2392.1,2391.8,3.6111]
[1728054667312,1.04517,2392.3,2391.5,3.6042]
[1728054667516,4.2531,2392.1,2391.6,0.41817]
[1728054667811,0.41813,2392.0,2391.8,0.41814]
[1728054668011,3.62591,2392.1,2391.6,1.04548]
[1728054668228,0.41815,2391.9,2391.7,0.41816]
[1728054668411,4.25308,2392.1,2391.7,0.41816]
[1728054668609,0.41814,2391.9,2391.6,0.41818]
[1728054668913,0.41817,2391.8,2391.6,0.41818]
[1728054669111,0.41819,2391.6,2391.5,0.3964]
[1728054669303,3.2078,2392.1,2391.9,0.41812]
[1728054669507,0.41812,2392.0,2391.9,0.41812]
[1728054669715,3.62591,2392.1,2391.9,0.41812]
[1728054670014,0.41812,2392.0,2391.4,1.04556]
[1728054670205,3.2078,2392.1,2391.3,0.4192]
[1728054670410,3.2078,2392.1,2392.0,0.41812]
[1728054671007,3.2078,2392.1,2392.0,4.59892]
[1728054671433,2.5628,2392.1,2392.0,10.59892]
[1728054671808,1.04497,2392.8,2392.0,10.1808]
[1728054672006,0.41804,2392.5,2392.3,0.41806]
[1728054672216,0.41805,2392.4,2392.3,0.41806]
[1728054672416,0.41805,2392.5,2392.3,0.41806]
[1728054672808,1.045,2392.7,2392.0,1.04529]
[1728054673114,1.045,2392.7,2392.3,0.41805]
[1728054673312,0.418,2392.7,2392.1,1.44855]
[1728054673513,1.4539,2393.2,2392.4,3.2078]
[1728054673714,0.41796,2392.9,2392.7,0.41798]
[1728054674113,0.41797,2392.9,2392.7,0.41799]
[1728054674320,1.04482,2393.1,2392.4,3.2078]
[1728054674616,3.2078,2393.0,2392.1,4.65635]
[1728054674841,3.2078,2393.0,2392.1,3.6111]
[1728054675013,1.04497,2392.8,2392.3,0.41806]
[1728054675212,0.41803,2392.5,2392.3,0.41806]
[1728054675410,0.41798,2392.9,2392.6,0.418]
[1728054675617,1.04491,2392.9,2392.1,4.65634]
[1728054675807,3.2078,2393.0,2392.1,4.65634]
[1728054676009,4.25268,2393.0,2392.1,4.65634]
[1728054676316,4.25268,2393.0,2392.3,0.41805]
[1728054676317,0.41801,2392.7,2392.3,0.41805]
[1728054676518,0.41802,2392.6,2392.2,0.41807]
[1728054676721,0.41803,2392.5,2392.2,0.41808]
[1728054676913,1.04496,2392.8,2392.2,0.41808]
[1728054676914,0.41803,2392.6,2392.2,0.41808]
[1728054677218,0.41806,2392.4,2392.1,3.6111]
[1728054677517,0.418,2392.7,2392.1,3.6111]
[1728054677722,0.41799,2392.8,2392.4,0.41804]
[1728054677913,0.41802,2392.6,2392.3,0.41806]
[1728054678218,0.41802,2392.6,2392.1,3.6111]
[1728054678219,0.41807,2392.3,2392.1,3.6111]
[1728054678715,4.25287,2392.6,2392.1,4.0292]
[1728054678919,0.41805,2392.5,2392.1,4.02919]
[1728054679114,3.2078,2392.6,2392.1,3.6111]
[1728054679311,3.2078,2392.6,2392.1,3.2078]
[1728054679524,0.41804,2392.5,2392.1,3.62589]
[1728054679720,0.41805,2392.4,2392.1,3.62589]
[1728054679918,0.41807,2392.3,2392.1,3.2078]
[1728054680121,1.04505,2392.6,2392.1,3.2078]
[1728054680413,0.41808,2392.2,2392.1,3.2078]
[1728054680820,0.41807,2392.3,2392.1,3.2078]
[1728054681019,0.415,2392.5,2392.1,3.2078]
[1728054681215,0.41808,2392.2,2392.1,3.2078]
[1728054681716,0.41808,2392.2,2391.7,0.4065]
[1728054681717,0.415,2392.5,2391.7,0.4065]
[1728054681917,0.41807,2392.3,2392.0,0.41812]
[1728054682125,0.41806,2392.4,2392.0,0.41811]
[1728054682315,0.415,2392.5,2391.7,0.4065]
[1728054682518,0.41809,2392.2,2391.9,0.41813]
[1728054682721,0.41809,2392.2,2391.7,0.4065]
[1728054682920,0.41811,2392.1,2391.8,0.41815]
[1728054683115,1.04517,2392.3,2391.7,0.4065]
[1728054683116,0.41814,2391.9,2391.7,0.4065]
[1728054683311,1.04527,2392.1,2391.7,0.4065]
[1728054683524,1.04527,2392.1,2391.6,3.62599]
[1728054683525,0.41817,2391.8,2391.6,3.62599]
[1728054683713,1.04526,2392.1,2391.6,3.2078]
[1728054683918,0.41816,2391.8,2391.6,3.2078]
[1728054684114,3.2078,2392.4,2391.6,3.2078]
[1728054684327,0.41817,2391.7,2391.5,0.4182]
[1728054684627,0.41816,2391.8,2391.6,0.41818]
[1728054684820,1.04525,2392.2,2391.3,4.0331]
[1728054685019,1.04529,2392.1,2391.6,0.41818]
[1728054685214,0.41815,2391.8,2391.6,0.41818]
[1728054685621,0.41817,2391.7,2391.5,0.4182]
[1728054685924,0.41818,2391.7,2391.5,0.4182]
[1728054686519,0.4182,2391.6,2391.4,0.41821]
[1728054686715,0.4182,2391.6,2391.0,5.20476705]
[1728054686716,0.41824,2391.3,2391.1,0.41828]
[1728054687115,0.41824,2391.3,2391.1,0.41827]
[1728054687524,0.41824,2391.3,2391.2,0.41826]
[1728054687718,1.04553,2391.5,2391.0,3.2078]
[1728054687919,0.41822,2391.5,2391.0,3.2078]
[1728054688122,0.4052,2391.7,2391.4,0.41822]
[1728054688326,1.45064,2391.7,2391.0,4.25352]
[1728054688524,0.41822,2391.5,2391.3,0.41823]
[1728054688719,0.4052,2391.7,2391.0,3.2078]
[1728054688939,0.41822,2391.5,2391.3,0.41823]
[1728054689119,1.04549,2391.6,2391.0,3.2078]
[1728054689521,0.41824,2391.4,2391.2,0.41825]
[1728054690424,0.41823,2391.4,2391.2,0.41825]
[1728054690625,1.04549,2391.6,2391.2,0.41825]
[1728054690834,1.04549,2391.6,2391.0,3.2078]
[1728054691024,0.41819,2391.6,2391.4,0.41821]
[1728054691227,1.45064,2391.7,2391.0,3.2078]
[1728054691431,3.2078,2392.5,2391.6,3.2078]
[1728054691620,3.2078,2392.5,2391.3,4.02]
[1728054691621,1.0449,2393.0,2392.0,1.0453]
[1728054691829,0.7956,2393.2,2392.2,7.2278]
[1728054692026,0.4043,2393.2,2392.8,0.41797]
[1728054692228,0.41793,2393.1,2392.5,7.2278]
[1728054692424,0.41793,2393.1,2392.8,0.41798]
[1728054692645,0.4043,2393.2,2392.6,0.4102]
[1728054692924,1.04482,2393.1,2392.6,0.4102]
[1728054693229,0.41799,2392.8,2392.5,0.41802]
[1728054693732,1.44852,2393.1,2392.2,3.618]
[1728054693733,0.4037,2393.1,2392.2,3.618]
[1728054693939,0.41794,2393.0,2392.7,0.41798]
[1728054694130,0.41797,2392.9,2392.6,0.418]
[1728054694325,0.41797,2392.9,2392.2,3.618]
[1728054694326,0.41795,2393.0,2392.7,0.41798]
[1728054694837,0.41799,2392.8,2392.5,0.41802]
[1728054695032,0.4037,2393.1,2392.5,0.41802]
[1728054695033,0.82164,2393.1,2392.8,0.41796]
[1728054695341,0.41795,2393.0,2392.7,0.41798]
[1728054695529,0.41795,2393.0,2392.3,1.04517]
[1728054695530,0.41795,2393.0,2392.8,0.41797]
[1728054695739,0.4037,2393.1,2392.3,1.04517]
[1728054696035,0.41797,2392.9,2392.7,0.41798]
[1728054696334,0.41798,2392.9,2392.7,0.41798]
[1728054696539,0.41797,2392.9,2392.8,0.41798]
[1728054697036,0.418,2392.7,2392.5,3.2078]
[1728054697346,0.41795,2393.0,2392.8,0.41796]
[1728054697533,0.41798,2392.9,2392.5,3.2078]
[1728054697729,0.41798,2392.8,2392.7,0.41798]
[1728054697930,0.418,2392.7,2392.6,0.418]
[1728054698136,0.4037,2393.1,2392.5,3.2078]
[1728054698137,0.41801,2392.6,2392.5,3.2078]
[1728054698529,4.59801,2392.6,2392.5,3.2078]
[1728054698742,4.59801,2392.6,2392.1,3.2078]
[1728054698743,10.18,2392.6,2392.1,3.2078]
[1728054698936,10.18,2392.6,2392.3,0.41806]
[1728054698937,0.41805,2392.4,2392.3,0.41806]
[1728054699143,7.7278,2392.9,2392.1,3.2078]
[1728054699338,0.41808,2392.2,2392.1,3.2078]
[1728054699540,0.41811,2392.1,2391.9,0.41812]
[1728054699736,0.41811,2392.1,2392.0,0.41812]
[1728054700046,0.4181,2392.1,2392.0,0.41811]
[1728054700335,0.41811,2392.1,2391.4,3.5963]
[1728054700536,1.04519,2392.3,2391.5,1.04551]
[1728054700737,1.04521,2392.2,2391.4,3.5963]
[1728054700936,0.41812,2392.0,2391.8,0.41814]
[1728054701146,3.2078,2392.3,2391.4,4.64185]
[1728054701147,0.41811,2392.1,2391.9,0.41813]
[1728054701331,3.2078,2392.3,2391.4,4.64185]
[1728054701537,0.41812,2392.0,2391.9,0.41814]
[1728054701737,3.2078,2392.3,2391.4,3.2078]
[1728054701937,0.41819,2391.6,2391.4,0.41821]
[1728054702243,0.41821,2391.5,2391.3,0.41824]
[1728054702450,1.04543,2391.7,2391.3,0.41823]
[1728054702645,0.41821,2391.5,2391.2,0.3916]
[1728054702939,0.41821,2391.5,2391.3,0.41823]
[1728054703251,0.41819,2391.6,2391.4,0.41821]
[1728054703544,0.41818,2391.7,2391.5,0.4182]
[1728054704240,1.44557,2391.9,2391.4,0.41821]
[1728054704438,0.41818,2391.7,2391.5,0.4182]
[1728054704833,1.44557,2391.9,2391.2,0.3916]
[1728054705039,0.41822,2391.5,2391.3,0.41824]
[1728054705244,0.4182,2391.6,2391.4,0.41822]
[1728054705439,0.4182,2391.6,2391.2,0.3916]
[1728054705440,0.41819,2391.7,2391.5,0.4182]
[1728054705643,0.4002,2391.9,2391.3,3.2078]
[1728054705881,0.81834,2391.9,2391.7,0.41815]
[1728054706360,1.04527,2392.1,2391.4,1.04556]
[1728054706361,1.04526,2392.1,2391.4,1.04556]
[1728054706561,0.41814,2391.9,2391.4,1.04556]
[1728054706763,1.04526,2392.1,2391.4,1.04556]
[1728054706950,1.04526,2392.1,2391.3,4.2534]
[1728054707153,0.41814,2391.9,2391.8,0.41815]
[1728054707352,0.41814,2391.9,2391.4,1.04555]
[1728054707554,0.41814,2391.9,2391.8,0.41815]
[1728054707860,0.41817,2391.8,2391.6,0.41818]
[1728054708055,0.41814,2391.9,2391.7,0.41816]
[1728054708458,0.41812,2392.0,2391.4,1.04556]
[1728054708668,0.41813,2392.0,2391.8,0.41815]
[1728054709053,0.41813,2392.0,2391.5,1.04551]
[1728054709054,0.41809,2392.2,2392.0,0.41811]
[1728054709256,3.2078,2392.6,2391.6,3.2078]
[1728054709461,0.41807,2392.3,2391.6,3.2078]
[1728054709654,1.04508,2392.6,2391.8,1.04539]
[1728054709954,1.04508,2392.6,2392.3,0.41806]
[1728054709955,0.41805,2392.5,2392.3,0.41806]
[1728054710154,0.4196,2392.7,2391.9,4.65174]
[1728054710360,0.41805,2392.4,2392.2,0.41807]
[1728054710757,0.41805,2392.4,2391.9,4.65174]
[1728054711063,1.04504,2392.6,2391.9,4.65174]
[1728054711267,0.41805,2392.4,2392.2,0.41807]
[1728054711461,1.04504,2392.6,2391.9,4.65174]
[1728054711651,0.4196,2392.7,2391.9,4.65174]
[1728054711855,0.41804,2392.5,2392.3,0.41806]
[1728054712155,1.04504,2392.6,2392.2,0.41808]
[1728054712353,1.04508,2392.5,2391.9,3.6064]
[1728054712554,1.04504,2392.6,2392.3,0.41806]
[1728054712762,3.6274,2392.7,2392.4,0.41805]
[1728054712763,0.41803,2392.5,2392.4,0.41805]
[1728054712958,0.41806,2392.4,2391.9,4.65174]
[1728054713163,0.41806,2392.4,2392.3,0.41807]
[1728054713363,0.41806,2392.4,2392.2,0.41807]
[1728054713570,0.41806,2392.4,2392.3,0.41807]
[1728054713869,1.04509,2392.5,2391.9,4.65174]
[1728054714261,1.04504,2392.6,2392.1,0.41809]
[1728054714560,1.04513,2392.4,2391.9,3.6064]
[1728054714774,0.41808,2392.3,2392.2,0.41808]
[1728054715159,0.41808,2392.3,2391.9,4.65173]
[1728054715160,0.41808,2392.3,2392.0,0.41812]
[1728054715366,0.41808,2392.3,2392.2,0.41808]
[1728054715572,0.41806,2392.4,2392.0,0.41812]
[1728054715863,1.04512,2392.5,2391.9,3.6064]
[1728054716203,0.4181,2392.2,2392.1,0.4181]
[1728054716666,1.04512,2392.5,2391.9,3.6064]
[1728054716962,0.41812,2392.0,2391.9,4.02452]
[1728054717168,0.41812,2392.0,2391.9,4.02453]
[1728054717364,0.41812,2392.0,2391.9,0.81673]
[1728054717564,1.04523,2392.2,2391.8,0.41814]
[1728054717565,0.41814,2391.9,2391.8,0.41814]
[1728054717764,0.41814,2391.9,2391.6,3.2078]
[1728054717765,4.25295,2392.4,2391.6,3.2078]
[1728054717969,0.41813,2392.0,2391.9,0.41813]
[1728054718162,0.41815,2391.9,2391.8,0.41814]
[1728054718359,0.41813,2392.0,2391.9,0.41813]
[1728054718763,0.41812,2392.0,2391.9,0.41813]
[1728054718966,1.04522,2392.2,2391.6,3.2078]
[1728054719169,0.41816,2391.8,2391.7,0.41816]
[1728054719467,0.41816,2391.8,2391.2,2.09122]
[1728054719468,6.0,2391.8,2390.9,3.2078]
[1728054719673,7.2278,2391.9,2390.9,4.25358]
[1728054719873,0.41822,2391.5,2391.4,0.41822]
[1728054720065,0.4182,2391.6,2391.1,1.0457]
[1728054720261,1.04545,2391.7,2391.1,1.0457]
[1728054720461,8.27315,2391.9,2391.6,0.41818]
[1728054720668,3.2078,2391.9,2391.7,0.41816]
[1728054720865,0.41815,2391.8,2391.7,0.41816]
[1728054721069,3.26857349,2392.3,2392.2,0.41808]
[1728054721275,1.04504,2392.6,2392.1,0.41809]
[1728054721474,0.41804,2392.5,2391.9,1.04535]
[1728054721775,0.41807,2392.3,2392.2,0.41808]
[1728054721995,0.41804,2392.5,2391.9,1.04535]
[1728054722172,1.04509,2392.5,2392.1,0.41809]
[1728054722468,0.41808,2392.2,2392.1,0.41809]
[1728054722668,1.04513,2392.4,2391.8,4.25319]
[1728054722970,0.4181,2392.2,2391.8,1.04539]
[1728054723168,0.41806,2392.4,2392.2,0.41807]
[1728054723378,0.41804,2392.5,2392.4,0.41804]
[1728054723670,0.41804,2392.5,2392.0,1.0453]
[1728054723870,0.7942,2392.8,2392.0,4.2531]
[1728054724171,3.26857349,2393.2,2392.3,3.2078]
[1728054724377,0.41793,2393.1,2392.8,0.41797]
[1728054724568,4.65107,2393.3,2392.8,0.41797]
[1728054724771,0.41793,2393.1,2392.8,0.41797]
[1728054725087,8.1984,2393.2,2392.4,0.4209]
[1728054725265,1.04497,2392.8,2392.0,3.2078]
[1728054725572,0.41803,2392.6,2392.0,3.2078]
[1728054725778,0.41805,2392.4,2392.0,3.2078]
[1728054726070,0.41805,2392.4,2392.1,0.41809]
[1728054726272,4.43803,2392.6,2392.0,3.2078]
[1728054726663,1.04508,2392.5,2392.0,3.2078]
[1728054726863,0.4181,2392.1,2392.0,3.2078]
[1728054727265,0.41809,2392.2,2392.0,3.62591]
[1728054727769,0.4181,2392.1,2392.0,3.2078]
[1728054727974,1.04517,2392.3,2392.0,3.2078]
[1728054728176,0.4181,2392.1,2392.0,3.2078]
[1728054728901,10.1808,2392.1,2391.5,3.6269]
[1728054729084,0.41816,2391.8,2391.6,0.41818]
[1728054729771,0.41818,2391.7,2391.5,4.0451]
[1728054729971,0.41816,2391.8,2391.6,0.41818]
[1728054730172,0.41815,2391.8,2391.6,0.41818]
[1728054730581,0.41818,2391.7,2391.5,3.626]
[1728054730774,0.41819,2391.6,2391.5,3.2078]
[1728054730970,0.8053,2392.0,2391.2,1.04565]
[1728054731275,0.8053,2392.0,2391.1,3.6292]
[1728054731276,0.8053,2392.0,2391.8,0.41815]
[1728054731476,1.04515,2392.4,2391.9,0.41814]
[1728054731681,6.87507349,2392.5,2392.1,0.41808]
[1728054731682,0.41807,2392.3,2392.1,0.41808]
[1728054731975,7.6265,2392.5,2391.9,0.3926]
[1728054732277,1.04518,2392.3,2392.0,0.4181]
[1728054732466,0.41812,2392.0,2391.9,0.3926]
[1728054732976,0.41811,2392.1,2391.9,0.81074]
[1728054733175,8.67161,2392.5,2391.9,0.3926]
[1728054733374,0.41812,2392.0,2391.9,0.3926]
[1728054733574,7.6265,2392.5,2391.7,3.2078]
[1728054733974,1.04517,2392.3,2391.7,3.2078]
[1728054734282,0.41812,2392.1,2392.0,0.41812]
[1728054734482,8.67161,2392.5,2391.9,0.41813]
[1728054734483,0.41812,2392.0,2391.9,0.41813]
[1728054734677,1.04517,2392.4,2392.0,0.41811]
[1728054734983,0.4181,2392.2,2392.0,0.41811]
[1728054735274,0.41811,2392.1,2391.9,0.41812]
[1728054735480,0.41811,2392.1,2392.0,0.41812]
[1728054735681,1.04517,2392.3,2392.0,0.41812]
[1728054735882,0.41808,2392.2,2392.0,0.41812]
[1728054736108,1.04513,2392.4,2391.7,3.2078]
[1728054736281,0.41809,2392.2,2392.1,0.4181]
[1728054736482,0.41813,2392.0,2391.7,3.2078]
[1728054736680,0.41813,2392.0,2391.8,0.41814]
[1728054736880,0.41813,2392.0,2391.7,3.2078]
[1728054737086,0.41813,2392.0,2391.9,0.41814]
[1728054737777,1.04526,2392.1,2391.7,3.2078]
[1728054737973,0.41815,2391.9,2391.8,0.41815]
[1728054738375,0.41815,2391.8,2391.7,3.62596]
[1728054738674,1.04525,2392.2,2391.7,3.2078]
[1728054739079,0.41812,2392.0,2391.9,0.41813]
[1728054739578,44.06857349,2392.4,2391.7,3.2078]
[1728054739579,0.20704314,2392.1,2391.7,3.2078]
[1728054739780,0.41814,2391.9,2391.8,0.41815]
[1728054740278,3.2078,2392.2,2391.8,4.1808]
[1728054740481,4.2434338,2392.5,2392.2,0.41808]
[1728054740482,0.41807,2392.3,2392.2,0.41808]
[1728054740678,0.4181,2392.1,2392.0,0.41811]
[1728054741179,1.04513,2392.4,2391.8,1.04538]
[1728054741384,1.04513,2392.4,2391.7,3.2078]
[1728054741584,1.04513,2392.4,2391.7,4.25323]
[1728054741781,1.04513,2392.4,2391.7,3.2078]
[1728054741979,7.68727349,2392.5,2391.7,3.2078]
[1728054742284,0.41815,2391.8,2391.7,3.2078]
[1728054742482,0.41819,2391.6,2391.5,0.3926]
[1728054742681,0.41819,2391.6,2391.5,0.41821]
[1728054742978,1.44173,2391.8,2391.1,3.6098]
[1728054742979,0.41821,2391.5,2391.4,0.41822]
[1728054743180,0.81447,2391.8,2391.3,1.46385]
[1728054743373,7.52169349,2392.0,2391.6,1.04548]
[1728054743374,0.41813,2392.0,2391.6,1.04548]
[1728054743580,0.41813,2392.0,2391.9,0.41814]
[1728054744077,0.41819,2391.6,2391.5,0.4182]
[1728054744282,1.0453,2392.0,2391.3,1.0456]
[1728054744485,4.31387349,2392.0,2391.3,1.0456]
[1728054744688,0.41816,2391.8,2391.3,1.04559]
[1728054744889,0.41816,2391.8,2391.2,4.25343]
[1728054745183,0.41816,2391.8,2391.7,0.41817]
[1728054745812,0.41815,2391.9,2391.8,0.41815]
[1728054746081,0.41816,2391.8,2391.7,0.41816]
[1728054747190,1.04532,2392.0,2391.3,1.04561]
[1728054747384,0.41819,2391.6,2391.5,0.41819]
[1728054747577,0.41817,2391.7,2391.6,0.41818]
[1728054747981,1.04532,2392.0,2391.3,1.04561]
[1728054748279,1.04532,2392.0,2391.5,0.41819]
[1728054748280,0.41819,2391.6,2391.5,0.41819]
[1728054748480,0.41819,2391.6,2391.2,4.25344]
[1728054748481,6.68897652,2392.1,2391.2,4.25344]
[1728054748686,0.41812,2392.0,2391.2,3.2078]
[1728054748884,0.41813,2392.0,2391.9,0.41813]
[1728054749085,0.41812,2392.0,2391.9,0.41813]
[1728054749485,0.41813,2392.0,2391.9,0.41813]
[1728054749790,0.41813,2392.0,2391.6,1.04548]
[1728054749791,4.31379349,2392.2,2391.6,1.04548]
[1728054749992,0.41812,2392.0,2391.9,0.41812]
[1728054750184,4.31379349,2392.2,2391.6,1.04548]
[1728054750491,3.66487349,2392.3,2391.7,0.4217]
[1728054750681,4.39398149,2392.6,2392.1,3.2078]
[1728054750682,3.26857349,2392.6,2392.1,3.2078]
[1728054750887,3.26857349,2392.9,2392.8,0.41798]
[1728054751087,3.26857349,2393.0,2392.4,3.2078]
[1728054751291,1.04483,2393.1,2392.7,0.418]
[1728054751292,4.31340349,2393.1,2392.7,0.418]
[1728054751488,1.04497,2392.8,2392.3,0.41805]
[1728054751796,4.02,2392.5,2391.5,1.10059594]
[1728054752091,4.02,2392.5,2391.0,0.48908096]
[1728054752092,7.2278,2391.6,2390.5,3.86354935]
[1728054752293,4.02,2390.6,2390.3,0.84011]
[1728054752482,4.02,2390.6,2390.3,0.4217]
[1728054752692,7.2278,2390.4,2389.8,0.89442217]
[1728054752894,3.2078,2389.9,2389.8,0.89442217]
[1728054753283,3.2078,2389.9,2389.7,0.48952634]
[1728054753284,7.3918,2389.9,2389.7,0.48952634]
[1728054753482,3.2078,2389.9,2389.7,0.48952634]
[1728054753683,3.2078,2390.3,2389.8,4.1848]
[1728054753992,3.2078,2390.6,2389.8,0.4083]
[1728054754188,3.2078,2390.6,2390.0,0.41846]
[1728054754492,3.2078,2390.9,2389.9,0.8342]
[1728054754691,3.2078,2390.9,2390.1,0.41845]
[1728054755710,3.2078,2390.9,2390.0,0.41847]
[1728054755894,3.2078,2390.9,2390.2,0.41842]
[1728054756093,3.2078,2390.9,2389.9,0.8342]
[1728054756391,0.41835,2390.7,2390.0,0.41846]
[1728054756690,3.2078,2390.9,2390.3,0.41841]
[1728054756895,0.41834,2390.8,2390.0,0.41847]
[1728054757090,0.41835,2390.7,2390.1,0.41845]
[1728054757285,3.2078,2390.9,2390.0,0.41845]
[1728054757593,3.2078,2390.9,2390.1,0.41845]
[1728054757800,4.412,2391.0,2390.1,0.41844]
[1728054757801,3.2078,2390.6,2390.1,0.41844]
[1728054757989,3.2078,2390.6,2389.9,0.8342]
[1728054758193,3.62612,2390.9,2390.4,0.4184]
[1728054758497,3.62612,2390.9,2390.5,0.3976]
[1728054758795,0.41834,2390.8,2390.5,0.3976]
[1728054759095,0.41833,2390.8,2390.5,0.3976]
[1728054759286,3.2078,2390.6,2389.9,0.8342]
[1728054759488,3.2078,2390.6,2390.2,0.41843]
[1728054759489,3.62618,2390.6,2390.2,0.41843]
[1728054759689,3.2078,2390.6,2390.3,0.4184]
[1728054759891,4.43835,2390.7,2390.3,0.4184]
[1728054760294,4.02,2390.7,2389.9,1.252]
[1728054761098,3.62612,2390.9,2390.6,0.41836]
[1728054761298,3.2078,2390.9,2390.5,0.41837]
[1728054761598,3.62612,2390.9,2390.0,1.04618]
[1728054761893,0.41834,2390.8,2390.1,0.41845]
[1728054762105,0.41834,2390.8,2390.0,1.04618]
[1728054762299,3.62612,2390.9,2390.6,0.41836]
[1728054762515,3.62612,2390.9,2390.0,1.04618]
[1728054762516,0.41833,2390.8,2390.5,0.41837]
[1728054762700,3.2078,2390.9,2390.6,0.41835]
[1728054762701,3.62612,2390.9,2390.6,0.41835]
[1728054762915,4.83031,2391.0,2390.7,0.41834]
[1728054763404,0.41832,2390.9,2390.6,0.41835]
[1728054764398,0.41834,2390.8,2390.5,0.41837]
[1728054764703,0.41834,2390.8,2390.6,0.41835]
[1728054765001,0.41834,2390.8,2390.1,3.2078]
[1728054765199,0.41834,2390.8,2390.2,0.41843]
[1728054765498,0.41834,2390.8,2390.6,0.41836]
[1728054765698,4.412,2391.0,2390.6,0.41836]
[1728054765902,0.41832,2390.9,2390.6,0.41836]
[1728054766196,0.41831,2390.9,2390.2,1.04608]
[1728054766401,4.412,2391.0,2390.2,1.04608]
[1728054766603,0.41833,2390.9,2390.7,0.41834]
[1728054766799,4.412,2391.0,2390.7,0.41834]
[1728054767001,0.41831,2390.9,2390.7,0.41834]
[1728054767502,0.41833,2390.8,2390.6,0.41835]
[1728054767802,0.41832,2390.9,2390.6,0.41835]
[1728054767998,4.412,2391.0,2390.5,0.41837]
[1728054768207,4.412,2391.0,2390.8,0.41832]
[1728054768507,4.8303,2391.0,2390.7,0.41834]
[1728054768702,4.412,2391.0,2390.2,1.04608]
[1728054768901,0.41832,2390.9,2390.6,0.41836]
[1728054769204,0.41832,2390.9,2390.2,1.04608]
[1728054769205,3.2078,2390.9,2390.2,1.04608]
[1728054769405,0.41835,2390.7,2390.5,0.41838]
[1728054769610,4.02,2390.7,2390.1,3.2078]
[1728054769803,0.41837,2390.6,2390.4,0.4184]
[1728054770197,4.02,2390.5,2390.1,3.2078]
[1728054770496,3.2078,2390.6,2390.5,0.41838]
[1728054770899,3.62617,2390.6,2390.1,3.2078]
[1728054771092,3.2078,2390.6,2390.1,3.2078]
[1728054771496,0.41839,2390.5,2390.3,0.41841]
[1728054771696,0.4184,2390.4,2390.2,0.41842]
[1728054771900,0.41839,2390.5,2390.3,0.41841]
[1728054772201,4.02,2390.5,2389.9,0.4178]
[1728054772403,0.4297,2390.4,2390.3,0.41842]
[1728054773406,3.62617,2390.6,2390.1,1.04612]
[1728054773602,3.2078,2390.6,2390.1,1.04612]
[1728054773910,3.2078,2390.6,2389.9,4.6718]
[1728054773911,3.62616,2390.6,2390.4,0.41838]
[1728054774403,3.2078,2390.6,2390.4,0.41838]
[1728054774613,3.62617,2390.6,2390.4,0.41838]
[1728054774799,3.2078,2390.6,2389.9,4.6718]
[1728054775005,0.4184,2390.4,2390.2,0.41843]
[1728054775201,4.4384,2390.5,2390.2,0.41843]
[1728054775412,4.02,2390.5,2389.9,3.6256]
[1728054775607,4.43844,2390.2,2389.9,3.2078]
[1728054775918,0.4225,2390.1,2389.9,0.41848]
[1728054776100,0.84096,2390.1,2389.9,0.41848]
[1728054776298,0.4225,2390.1,2389.6,4.25414]
[1728054776502,0.4225,2390.1,2390.0,0.41847]
[1728054776904,0.3922,2390.4,2390.0,4.184]
[1728054777210,5.06584,2390.8,2390.1,1.04613]
[1728054777509,0.41835,2390.7,2390.5,0.41837]
[1728054777703,4.02,2390.8,2389.9,4.25399]
[1728054777904,4.02,2390.8,2390.0,1.04616]
[1728054778106,4.02,2390.5,2389.9,3.2078]
[1728054778307,0.82751,2390.4,2390.0,0.41847]
[1728054778507,0.82751,2390.4,2390.2,0.41842]
[1728054778708,0.4091,2390.4,2390.3,0.41842]
[1728054779014,0.4091,2390.4,2389.9,3.2078]
[1728054779222,0.4091,2390.4,2390.3,0.41842]
[1728054779409,0.82751,2390.4,2389.9,3.2078]
[1728054779615,3.27,2390.2,2390.0,0.41847]
[1728054779812,3.27,2390.2,2389.9,4.25401]
[1728054779813,3.27,2390.2,2390.1,0.41845]
[1728054780511,3.27,2390.4,2390.3,0.41842]